[Event "Live Chess"]
[Site "Chess.com"]
[Date "2023.05.20"]
[Round "-"]
[White "mliszewski"]
[Black "mikkyb4"]
[Result "1-0"]
[WhiteElo "1885"]
[BlackElo "1010"]
[TimeControl "300"]
[EndTime "12:01:30 PDT"]
[Termination "mliszewski won on time"]

1. d4 {[%clk 0:04:59]} 1... g6 {[%clk 0:04:58.6]} 2. Bf4 {[%clk 0:04:56.9]} 2...
Bg7 {[%clk 0:04:57.3]} 3. Nc3 {[%clk 0:04:56.5]} 3... d6 {[%clk 0:04:56.4]} 4.
e4 {[%clk 0:04:55.9]} 4... Nc6 {[%clk 0:04:54.5]} 5. Nf3 {[%clk 0:04:48.8]} 5...
Bg4 {[%clk 0:04:52]} 6. Bb5 {[%clk 0:04:41.9]} 6... Bxf3 {[%clk 0:04:49.8]} 7.
gxf3 {[%clk 0:04:41.1]} 7... Nf6 {[%clk 0:04:45.8]} 8. d5 {[%clk 0:04:39.4]}
8... a6 {[%clk 0:04:44.2]} 9. Ba4 {[%clk 0:04:34.9]} 9... b5 {[%clk 0:04:43]}
10. dxc6 {[%clk 0:04:34.2]} 10... bxa4 {[%clk 0:04:41.3]} 11. Nxa4 {[%clk
0:04:33.3]} 11... O-O {[%clk 0:04:30.3]} 12. Qd2 {[%clk 0:04:31.9]} 12... e5
{[%clk 0:04:23.4]} 13. Bh6 {[%clk 0:04:30.6]} 13... Nh5 {[%clk 0:04:10.1]} 14.
Bxg7 {[%clk 0:04:28.2]} 14... Kxg7 {[%clk 0:04:08.8]} 15. Nc3 {[%clk 0:04:26.3]}
15... Nf4 {[%clk 0:04:06.1]} 16. Nd5 {[%clk 0:04:20.2]} 16... Rb8 {[%clk
0:03:53.4]} 17. Nxf4 {[%clk 0:04:17.5]} 17... exf4 {[%clk 0:03:51.3]} 18. Qxf4
{[%clk 0:04:17.2]} 18... Rxb2 {[%clk 0:03:46.3]} 19. Qd2 {[%clk 0:04:06.8]}
19... Qf6 {[%clk 0:03:40.6]} 20. O-O {[%clk 0:04:03.5]} 20... Qxf3 {[%clk
0:03:28.5]} 21. Qd4+ {[%clk 0:03:58.3]} 21... Qf6 {[%clk 0:03:24.7]} 22. Qa4
{[%clk 0:03:52.4]} 22... Qg5+ {[%clk 0:03:08.5]} 23. Kh1 {[%clk 0:03:51.1]}
23... Qf4 {[%clk 0:02:55.4]} 24. Rae1 {[%clk 0:03:45.2]} 24... d5 {[%clk
0:02:32.9]} 25. Re3 {[%clk 0:03:42.3]} 25... Rfb8 {[%clk 0:02:16.9]} 26. Qd4+
{[%clk 0:03:39.5]} 26... f6 {[%clk 0:02:05.4]} 27. Qxd5 {[%clk 0:03:36.2]} 27...
Rb1 {[%clk 0:02:00.9]} 28. Kg2 {[%clk 0:03:18.5]} 28... Rxf1 {[%clk 0:01:57.1]}
29. Kxf1 {[%clk 0:03:17.3]} 29... Rb1+ {[%clk 0:01:49.6]} 30. Ke2 {[%clk
0:03:16.1]} 30... Qg4+ {[%clk 0:01:32.7]} 31. Rf3 {[%clk 0:03:14.2]} 31... Re1+
{[%clk 0:01:24.1]} 32. Kxe1 {[%clk 0:03:10.3]} 32... Qxf3 {[%clk 0:01:23]} 33.
Qd7+ {[%clk 0:03:07.9]} 33... Kh6 {[%clk 0:01:21.4]} 34. Qxc7 {[%clk 0:03:06]}
34... Qxe4+ {[%clk 0:01:19.3]} 35. Kd2 {[%clk 0:03:04.7]} 35... Qd5+ {[%clk
0:01:07.5]} 36. Kc3 {[%clk 0:03:03.6]} 36... Qxa2 {[%clk 0:00:59]} 37. Qf4+
{[%clk 0:02:55.2]} 37... Kg7 {[%clk 0:00:53.1]} 38. Qc4 {[%clk 0:02:53.2]} 38...
Qa3+ {[%clk 0:00:45.5]} 39. Kd4 {[%clk 0:02:51.5]} 39... Qd6+ {[%clk 0:00:36.2]}
40. Qd5 {[%clk 0:02:48.7]} 40... Qf4+ {[%clk 0:00:26.2]} 41. Kc5 {[%clk
0:02:47.2]} 41... a5 {[%clk 0:00:16.2]} 42. Qd7+ {[%clk 0:02:45.8]} 42... Kh6
{[%clk 0:00:14.5]} 43. Qh3+ {[%clk 0:02:44]} 43... Kg7 {[%clk 0:00:12.9]} 44.
Qe3 {[%clk 0:02:40.6]} 44... Qc7 {[%clk 0:00:10.5]} 45. Qe6 {[%clk 0:02:36.3]}
45... a4 {[%clk 0:00:07.7]} 46. Qd7+ {[%clk 0:02:35.2]} 46... Qxd7 {[%clk
0:00:05.1]} 47. cxd7 {[%clk 0:02:34.8]} 1-0

[Event "Live Chess"]
[Site "Chess.com"]
[Date "2023.05.20"]
[Round "-"]
[White "mightysmasher"]
[Black "AbilifyXL"]
[Result "0-1"]
[WhiteElo "2115"]
[BlackElo "1951"]
[TimeControl "300"]
[EndTime "12:01:37 PDT"]
[Termination "AbilifyXL won by resignation"]

1. e4 {[%clk 0:04:58.5]} 1... d5 {[%clk 0:04:58.8]} 2. exd5 {[%clk 0:04:57.5]}
2... Qxd5 {[%clk 0:04:57.9]} 3. Nc3 {[%clk 0:04:56.9]} 3... Qa5 {[%clk
0:04:56.9]} 4. d4 {[%clk 0:04:56]} 4... c6 {[%clk 0:04:56.4]} 5. Nf3 {[%clk
0:04:54.6]} 5... Nf6 {[%clk 0:04:50]} 6. Bc4 {[%clk 0:04:53.4]} 6... Bg4 {[%clk
0:04:49.2]} 7. O-O {[%clk 0:04:52.2]} 7... e6 {[%clk 0:04:48.4]} 8. h3 {[%clk
0:04:51.4]} 8... Bh5 {[%clk 0:04:47.4]} 9. Be3 {[%clk 0:04:49.8]} 9... Nbd7
{[%clk 0:04:46.8]} 10. a3 {[%clk 0:04:49.2]} 10... Bd6 {[%clk 0:04:42.6]} 11.
Bd3 {[%clk 0:04:48.1]} 11... O-O {[%clk 0:04:40.3]} 12. Ne4 {[%clk 0:04:46.7]}
12... Be7 {[%clk 0:04:39.1]} 13. c3 {[%clk 0:04:44.7]} 13... Qc7 {[%clk
0:04:38.1]} 14. Qc2 {[%clk 0:04:39.9]} 14... Bg6 {[%clk 0:04:36.7]} 15. Rfe1
{[%clk 0:04:37.9]} 15... Rfc8 {[%clk 0:04:35.1]} 16. Bg5 {[%clk 0:04:36.7]}
16... Re8 {[%clk 0:04:31.9]} 17. Ne5 {[%clk 0:04:35.2]} 17... Nxe4 {[%clk
0:04:28.5]} 18. Bxe4 {[%clk 0:04:33.6]} 18... Bxg5 {[%clk 0:04:24.9]} 19. Bxg6
{[%clk 0:04:20.4]} 19... hxg6 {[%clk 0:04:23.9]} 20. Nxg6 {[%clk 0:04:19.3]}
20... fxg6 {[%clk 0:04:19.5]} 21. Qxg6 {[%clk 0:04:18.5]} 21... Bf6 {[%clk
0:04:18.1]} 22. g4 {[%clk 0:04:17.4]} 22... Nf8 {[%clk 0:04:17]} 23. g5 {[%clk
0:04:16.1]} 23... Nxg6 {[%clk 0:04:15.5]} 0-1

[Event "Live Chess"]
[Site "Chess.com"]
[Date "2023.05.20"]
[Round "-"]
[White "EdenHazard8"]
[Black "Goblinbasher"]
[Result "1-0"]
[WhiteElo "2090"]
[BlackElo "1206"]
[TimeControl "300"]
[EndTime "12:01:42 PDT"]
[Termination "EdenHazard8 won by resignation"]

1. e4 {[%clk 0:04:57.7]} 1... c5 {[%clk 0:04:57]} 2. Nf3 {[%clk 0:04:56.3]} 2...
e6 {[%clk 0:04:55.8]} 3. Nc3 {[%clk 0:04:54.2]} 3... a6 {[%clk 0:04:53.6]} 4. d4
{[%clk 0:04:53.4]} 4... cxd4 {[%clk 0:04:52.4]} 5. Nxd4 {[%clk 0:04:53.3]} 5...
Nc6 {[%clk 0:04:51.8]} 6. Be3 {[%clk 0:04:52.5]} 6... Nge7 {[%clk 0:04:50.7]} 7.
Qd2 {[%clk 0:04:51.5]} 7... b5 {[%clk 0:04:47.9]} 8. O-O-O {[%clk 0:04:50.4]}
8... Bb7 {[%clk 0:04:47.4]} 9. Kb1 {[%clk 0:04:49.5]} 9... d5 {[%clk 0:04:40.8]}
10. exd5 {[%clk 0:04:47]} 10... Nxd5 {[%clk 0:04:34.4]} 11. Nxd5 {[%clk
0:04:43.1]} 11... Qxd5 {[%clk 0:04:29.3]} 12. Be2 {[%clk 0:04:37.4]} 12... Bb4
{[%clk 0:04:24.5]} 13. c3 {[%clk 0:04:33.9]} 13... Be7 {[%clk 0:04:18]} 14. Bf3
{[%clk 0:04:29.9]} 14... Qd7 {[%clk 0:03:54.1]} 15. Rhe1 {[%clk 0:04:19.4]}
15... Rb8 {[%clk 0:03:47.1]} 16. Bf4 {[%clk 0:04:07.8]} 16... O-O {[%clk
0:03:39.4]} 17. Nxc6 {[%clk 0:04:05.4]} 17... Bxc6 {[%clk 0:03:31.3]} 18. Qxd7
{[%clk 0:04:02.8]} 18... Bxd7 {[%clk 0:03:28.7]} 19. Rxd7 {[%clk 0:04:02.7]}
19... Rbc8 {[%clk 0:03:18.8]} 20. Rxe7 {[%clk 0:04:00.6]} 1-0

[Event "Live Chess"]
[Site "Chess.com"]
[Date "2023.05.20"]
[Round "-"]
[White "Jo1ts"]
[Black "zdanevych"]
[Result "0-1"]
[WhiteElo "741"]
[BlackElo "1503"]
[TimeControl "300"]
[EndTime "12:01:42 PDT"]
[Termination "zdanevych won by resignation"]

1. d4 {[%clk 0:04:56.2]} 1... d5 {[%clk 0:04:59.2]} 2. Bf4 {[%clk 0:04:55.1]}
2... c5 {[%clk 0:04:58.6]} 3. Nf3 {[%clk 0:04:53.6]} 3... cxd4 {[%clk 0:04:58]}
4. Nxd4 {[%clk 0:04:51.8]} 4... Nc6 {[%clk 0:04:57]} 5. e3 {[%clk 0:04:49.8]}
5... a6 {[%clk 0:04:53.5]} 6. Nd2 {[%clk 0:04:44.4]} 6... Nf6 {[%clk 0:04:47.9]}
7. Bd3 {[%clk 0:04:40.6]} 7... Bg4 {[%clk 0:04:46.1]} 8. Be2 {[%clk 0:04:36.3]}
8... Bd7 {[%clk 0:04:41.3]} 9. O-O {[%clk 0:04:26.3]} 9... e5 {[%clk 0:04:40.4]}
10. Bg3 {[%clk 0:04:19.5]} 10... exd4 {[%clk 0:04:39]} 11. exd4 {[%clk
0:04:18.5]} 11... Nxd4 {[%clk 0:04:38.9]} 12. Bd3 {[%clk 0:04:13.6]} 12... Be7
{[%clk 0:04:36.5]} 13. Re1 {[%clk 0:04:11.8]} 13... O-O {[%clk 0:04:36.1]} 14.
c3 {[%clk 0:04:07.2]} 14... Nf5 {[%clk 0:04:32.8]} 15. Qf3 {[%clk 0:04:02.5]}
15... Nxg3 {[%clk 0:04:30.9]} 16. Qxg3 {[%clk 0:03:59.2]} 16... Bc6 {[%clk
0:04:20.4]} 17. Qh4 {[%clk 0:03:56]} 17... h6 {[%clk 0:04:13]} 18. Qf4 {[%clk
0:03:43.7]} 18... Bd6 {[%clk 0:04:09.3]} 19. Qf5 {[%clk 0:03:39.1]} 19... Qd7
{[%clk 0:04:02.7]} 20. Qh7+ {[%clk 0:03:36.8]} 20... Nxh7 {[%clk 0:04:01.3]} 21.
Bxh7+ {[%clk 0:03:36.5]} 21... Kxh7 {[%clk 0:04:00.8]} 0-1

[Event "Live Chess"]
[Site "Chess.com"]
[Date "2023.05.20"]
[Round "-"]
[White "JackRudd"]
[Black "ViktorTheCoolBoy"]
[Result "1-0"]
[WhiteElo "2455"]
[BlackElo "2527"]
[TimeControl "300"]
[EndTime "12:01:57 PDT"]
[Termination "JackRudd won by resignation"]

1. d4 {[%clk 0:04:58.8]} 1... Nf6 {[%clk 0:04:58]} 2. c4 {[%clk 0:04:57.7]} 2...
e6 {[%clk 0:04:55.5]} 3. Nc3 {[%clk 0:04:56.7]} 3... d5 {[%clk 0:04:49.5]} 4.
cxd5 {[%clk 0:04:55.1]} 4... exd5 {[%clk 0:04:48.8]} 5. Bg5 {[%clk 0:04:53.7]}
5... Be6 {[%clk 0:04:42.6]} 6. Qb3 {[%clk 0:04:50.1]} 6... Nc6 {[%clk
0:04:23.4]} 7. e3 {[%clk 0:04:35.7]} 7... Rb8 {[%clk 0:04:20.4]} 8. Nge2 {[%clk
0:04:31.2]} 8... Bd6 {[%clk 0:04:14.7]} 9. Nf4 {[%clk 0:04:29.1]} 9... Bxf4
{[%clk 0:04:08.1]} 10. Bxf4 {[%clk 0:04:28.1]} 10... O-O {[%clk 0:04:07.2]} 11.
Bd3 {[%clk 0:04:23.8]} 11... Ne4 {[%clk 0:04:03.6]} 12. O-O {[%clk 0:04:14.8]}
12... Nd2 {[%clk 0:04:02]} 13. Qc2 {[%clk 0:04:10.8]} 13... Nxf1 {[%clk
0:04:00.7]} 14. Bxh7+ {[%clk 0:04:09.7]} 14... Kh8 {[%clk 0:04:00.1]} 15. Rxf1
{[%clk 0:04:08.8]} 15... g6 {[%clk 0:03:56.1]} 16. Bxg6 {[%clk 0:04:07.6]} 16...
fxg6 {[%clk 0:03:55.5]} 17. Qxg6 {[%clk 0:04:06.5]} 17... Qf6 {[%clk 0:03:54.2]}
18. Qh5+ {[%clk 0:04:04]} 18... Kg8 {[%clk 0:03:52.5]} 19. Nxd5 {[%clk 0:04:03]}
19... Bxd5 {[%clk 0:03:47.5]} 20. Qxd5+ {[%clk 0:04:01.7]} 20... Qf7 {[%clk
0:03:46.8]} 21. Qg5+ {[%clk 0:04:00.5]} 21... Qg7 {[%clk 0:03:45.9]} 22. Qd5+
{[%clk 0:03:58.4]} 22... Rf7 {[%clk 0:03:45.2]} 23. Bxc7 {[%clk 0:03:56.7]}
23... Re8 {[%clk 0:03:41]} 24. Bg3 {[%clk 0:03:53.6]} 24... Qg6 {[%clk
0:03:32.1]} 25. h4 {[%clk 0:03:49.8]} 25... Qe4 {[%clk 0:03:25.7]} 26. Qb3
{[%clk 0:03:45.3]} 26... Ne7 {[%clk 0:03:18.8]} 27. Rc1 {[%clk 0:03:40.9]} 27...
Nf5 {[%clk 0:03:13.2]} 28. Rc5 {[%clk 0:03:36.2]} 28... Nxg3 {[%clk 0:03:07.9]}
29. Rg5+ {[%clk 0:03:35.1]} 29... Kf8 {[%clk 0:03:07.2]} 30. Rxg3 {[%clk
0:03:34.2]} 30... Rc8 {[%clk 0:03:01.3]} 31. Qa3+ {[%clk 0:03:30.2]} 31... Qe7
{[%clk 0:02:59.4]} 32. Qxa7 {[%clk 0:03:23.1]} 32... Qxh4 {[%clk 0:02:48.5]} 33.
Qa3+ {[%clk 0:03:15.9]} 33... Qe7 {[%clk 0:02:46.9]} 34. b4 {[%clk 0:03:10.5]}
34... Qd6 {[%clk 0:02:20.7]} 35. Qb2 {[%clk 0:03:05.7]} 35... Qc7 {[%clk
0:02:12.2]} 36. f4 {[%clk 0:02:57]} 36... Qc1+ {[%clk 0:02:10]} 37. Qxc1 {[%clk
0:02:55.8]} 37... Rxc1+ {[%clk 0:02:09.9]} 38. Kf2 {[%clk 0:02:55]} 38... Rc2+
{[%clk 0:02:09.3]} 39. Kf3 {[%clk 0:02:54.3]} 39... Rxa2 {[%clk 0:02:08.3]} 40.
Rg5 {[%clk 0:02:44.9]} 40... Rg7 {[%clk 0:02:03.7]} 41. Rf5+ {[%clk 0:02:42.3]}
41... Ke8 {[%clk 0:02:03]} 42. g4 {[%clk 0:02:38.8]} 42... Rb2 {[%clk
0:02:02.2]} 43. b5 {[%clk 0:02:35.3]} 43... Rc7 {[%clk 0:02:00.9]} 44. g5 {[%clk
0:02:32.7]} 44... Rf7 {[%clk 0:01:44.7]} 45. Rc5 {[%clk 0:02:30.5]} 45... Re7
{[%clk 0:01:43.2]} 46. g6 {[%clk 0:02:24.4]} 46... Rb3 {[%clk 0:01:36]} 47. Re5
{[%clk 0:02:21.7]} 47... Rxe5 {[%clk 0:01:33.4]} 48. dxe5 {[%clk 0:02:20.9]}
48... Rxb5 {[%clk 0:01:31.4]} 49. Ke4 {[%clk 0:02:20]} 49... Rb1 {[%clk
0:01:29.1]} 50. f5 {[%clk 0:02:18.6]} 50... b5 {[%clk 0:01:27.1]} 51. f6 {[%clk
0:02:17]} 51... b4 {[%clk 0:01:25.6]} 52. e6 {[%clk 0:02:13.1]} 52... Rf1 {[%clk
0:00:57.4]} 53. g7 {[%clk 0:02:08.3]} 53... Rxf6 {[%clk 0:00:43.9]} 54. g8=Q+
{[%clk 0:02:06.3]} 54... Ke7 {[%clk 0:00:43.5]} 55. Ke5 {[%clk 0:02:04.6]} 1-0

[Event "Live Chess"]
[Site "Chess.com"]
[Date "2023.05.20"]
[Round "-"]
[White "f4nomore"]
[Black "MartinWalker4"]
[Result "0-1"]
[WhiteElo "1372"]
[BlackElo "2082"]
[TimeControl "300"]
[EndTime "12:02:00 PDT"]
[Termination "MartinWalker4 won by resignation"]

1. c4 {[%clk 0:04:57]} 1... e5 {[%clk 0:04:57.5]} 2. Nc3 {[%clk 0:04:55.4]} 2...
Nf6 {[%clk 0:04:55.1]} 3. d3 {[%clk 0:04:54.5]} 3... Nc6 {[%clk 0:04:53.4]} 4.
g3 {[%clk 0:04:53.5]} 4... Bc5 {[%clk 0:04:51.4]} 5. Bg2 {[%clk 0:04:51.8]} 5...
h6 {[%clk 0:04:49.6]} 6. Nf3 {[%clk 0:04:50.3]} 6... d6 {[%clk 0:04:47.7]} 7.
O-O {[%clk 0:04:48.5]} 7... O-O {[%clk 0:04:46.2]} 8. a3 {[%clk 0:04:45.9]} 8...
a6 {[%clk 0:04:43.9]} 9. b4 {[%clk 0:04:44.6]} 9... Ba7 {[%clk 0:04:42.2]} 10.
Bd2 {[%clk 0:04:32.6]} 10... Be6 {[%clk 0:04:26.1]} 11. Qc1 {[%clk 0:04:30.4]}
11... Qd7 {[%clk 0:04:06.8]} 12. Bxh6 {[%clk 0:04:07.3]} 12... gxh6 {[%clk
0:04:04.6]} 13. Qxh6 {[%clk 0:04:04.3]} 13... Nh7 {[%clk 0:04:03.5]} 14. Ng5
{[%clk 0:03:54.2]} 14... Bf5 {[%clk 0:03:48.2]} 15. Be4 {[%clk 0:03:30.8]} 15...
f6 {[%clk 0:03:34.6]} 16. Nxh7 {[%clk 0:03:25.1]} 16... Qxh7 {[%clk 0:03:32.4]}
17. Qxh7+ {[%clk 0:03:14.8]} 17... Bxh7 {[%clk 0:03:30.5]} 18. Bd5+ {[%clk
0:03:06.1]} 18... Kh8 {[%clk 0:03:28.9]} 19. Ne4 {[%clk 0:03:00.4]} 19... Rab8
{[%clk 0:03:10.9]} 20. b5 {[%clk 0:02:55.1]} 20... axb5 {[%clk 0:03:08.5]} 21.
cxb5 {[%clk 0:02:53.3]} 21... Nd4 {[%clk 0:03:07.4]} 22. Rae1 {[%clk 0:02:28.4]}
22... Nxb5 {[%clk 0:03:01.1]} 23. a4 {[%clk 0:02:24.3]} 23... Nd4 {[%clk
0:02:59.5]} 24. Rc1 {[%clk 0:02:20.9]} 24... c6 {[%clk 0:02:55.4]} 25. Ba2
{[%clk 0:02:13.5]} 25... Nxe2+ {[%clk 0:02:53.8]} 26. Kg2 {[%clk 0:02:06.6]}
26... Nxc1 {[%clk 0:02:52.6]} 27. Rxc1 {[%clk 0:02:04.9]} 27... d5 {[%clk
0:02:51.7]} 28. Nc3 {[%clk 0:01:56.4]} 28... Bxd3 {[%clk 0:02:49.2]} 29. Nd1
{[%clk 0:01:40.1]} 29... Bd4 {[%clk 0:02:42.7]} 30. Ne3 {[%clk 0:01:36.3]} 30...
Bxe3 {[%clk 0:02:31.5]} 31. fxe3 {[%clk 0:01:34.7]} 31... Rbc8 {[%clk
0:02:29.7]} 32. Rd1 {[%clk 0:01:23.2]} 32... Be4+ {[%clk 0:02:27.9]} 33. Kf2
{[%clk 0:01:19.7]} 33... Rfd8 {[%clk 0:02:22.5]} 34. Rd2 {[%clk 0:01:12.7]}
34... c5 {[%clk 0:02:20.9]} 35. Rb2 {[%clk 0:01:09.4]} 35... Rc7 {[%clk
0:02:19]} 36. Rb6 {[%clk 0:01:07.1]} 36... Kg7 {[%clk 0:02:16.8]} 37. h4 {[%clk
0:00:54.3]} 37... c4 {[%clk 0:02:14.5]} 38. Bb1 {[%clk 0:00:41.2]} 38... c3
{[%clk 0:02:09.6]} 39. Bxe4 {[%clk 0:00:38.7]} 39... dxe4 {[%clk 0:02:08.4]} 0-1

[Event "Live Chess"]
[Site "Chess.com"]
[Date "2023.05.20"]
[Round "-"]
[White "Chesscoach_Golichenko"]
[Black "Geomorph"]
[Result "1-0"]
[WhiteElo "2660"]
[BlackElo "1232"]
[TimeControl "300"]
[EndTime "12:02:01 PDT"]
[Termination "Chesscoach_Golichenko won by resignation"]

1. d4 {[%clk 0:04:57.7]} 1... d5 {[%clk 0:04:58.4]} 2. Nc3 {[%clk 0:04:56.3]}
2... Nf6 {[%clk 0:04:56.6]} 3. Bf4 {[%clk 0:04:53.7]} 3... c5 {[%clk 0:04:54]}
4. e3 {[%clk 0:04:52.8]} 4... Qb6 {[%clk 0:04:53.1]} 5. Nf3 {[%clk 0:04:38.1]}
5... Qxb2 {[%clk 0:04:33.9]} 6. Nb5 {[%clk 0:04:32.3]} 6... Qb4+ {[%clk
0:04:25.7]} 7. c3 {[%clk 0:04:30.4]} 7... Qa5 {[%clk 0:04:08.1]} 8. Nc7+ {[%clk
0:04:29.4]} 8... Kd7 {[%clk 0:04:07.1]} 9. Nxa8 {[%clk 0:04:29]} 9... e6 {[%clk
0:03:58.9]} 10. Bxb8 {[%clk 0:04:21.6]} 10... Qxc3+ {[%clk 0:03:50.9]} 11. Nd2
{[%clk 0:04:20]} 11... cxd4 {[%clk 0:03:47.4]} 12. Bb5+ {[%clk 0:04:16.2]} 12...
Kd8 {[%clk 0:03:37.4]} 13. Bc7+ {[%clk 0:04:15.2]} 13... Ke7 {[%clk 0:03:26.9]}
14. exd4 {[%clk 0:04:12.6]} 14... Ne4 {[%clk 0:03:24.6]} 15. Rc1 {[%clk
0:04:10.5]} 15... Qb4 {[%clk 0:03:14.1]} 16. Bd3 {[%clk 0:04:06.1]} 16... Nxd2
{[%clk 0:03:07]} 17. Qxd2 {[%clk 0:03:56.4]} 17... Qxd2+ {[%clk 0:02:55.6]} 18.
Kxd2 {[%clk 0:03:56.3]} 18... Bd7 {[%clk 0:02:54.9]} 19. Ba5 {[%clk 0:03:52.6]}
19... g6 {[%clk 0:02:47]} 20. Nc7 {[%clk 0:03:48.6]} 20... Bh6+ {[%clk
0:02:45.5]} 21. Ke2 {[%clk 0:03:43.3]} 21... Bxc1 {[%clk 0:02:44.3]} 22. Rxc1
{[%clk 0:03:43.2]} 22... Rc8 {[%clk 0:02:38.8]} 23. Rc2 {[%clk 0:03:40.1]} 23...
b6 {[%clk 0:02:26.3]} 24. Ba6 {[%clk 0:03:38.1]} 24... Rf8 {[%clk 0:01:59.4]}
25. Bb4+ {[%clk 0:03:35]} 1-0

[Event "Live Chess"]
[Site "Chess.com"]
[Date "2023.05.20"]
[Round "-"]
[White "LL220284LL"]
[Black "Doge_Dandolo"]
[Result "1-0"]
[WhiteElo "2393"]
[BlackElo "2058"]
[TimeControl "300"]
[EndTime "12:02:03 PDT"]
[Termination "LL220284LL won by resignation"]

1. Nf3 {[%clk 0:04:57.7]} 1... Nf6 {[%clk 0:04:58.5]} 2. b4 {[%clk 0:04:54.2]}
2... g6 {[%clk 0:04:57.1]} 3. Bb2 {[%clk 0:04:52.5]} 3... Bg7 {[%clk 0:04:56.8]}
4. g3 {[%clk 0:04:50.7]} 4... O-O {[%clk 0:04:55.8]} 5. Bg2 {[%clk 0:04:38.3]}
5... c6 {[%clk 0:04:54.7]} 6. a3 {[%clk 0:04:31.2]} 6... d5 {[%clk 0:04:53.3]}
7. O-O {[%clk 0:04:28.2]} 7... Nbd7 {[%clk 0:04:48.2]} 8. e3 {[%clk 0:04:26.2]}
8... Qc7 {[%clk 0:04:47]} 9. Re1 {[%clk 0:04:23.9]} 9... Re8 {[%clk 0:04:44.2]}
10. d4 {[%clk 0:04:22.9]} 10... Nb6 {[%clk 0:04:42.1]} 11. Nbd2 {[%clk 0:04:18]}
11... Bg4 {[%clk 0:04:37.9]} 12. h3 {[%clk 0:04:16.1]} 12... Bxf3 {[%clk
0:04:36.7]} 13. Bxf3 {[%clk 0:04:16]} 13... Nfd7 {[%clk 0:04:28]} 14. Rc1 {[%clk
0:04:12.8]} 14... Nc8 {[%clk 0:04:17.6]} 15. c4 {[%clk 0:04:10.6]} 15... e6
{[%clk 0:04:12.6]} 16. cxd5 {[%clk 0:04:04]} 16... exd5 {[%clk 0:04:11.7]} 17.
Bxd5 {[%clk 0:04:00.3]} 17... Qd6 {[%clk 0:04:09.4]} 18. Bg2 {[%clk 0:03:59]}
18... Ndb6 {[%clk 0:04:04.8]} 19. Ne4 {[%clk 0:03:53.4]} 19... Qd8 {[%clk
0:03:56.3]} 20. Nc5 {[%clk 0:03:52.6]} 20... Qe7 {[%clk 0:03:53.8]} 21. Qb3
{[%clk 0:03:50.4]} 21... Nd6 {[%clk 0:03:47.9]} 22. e4 {[%clk 0:03:42.1]} 22...
a5 {[%clk 0:03:45.8]} 23. e5 {[%clk 0:03:37.1]} 23... Nb5 {[%clk 0:03:43.6]} 24.
a4 {[%clk 0:03:33.1]} 24... Nc7 {[%clk 0:03:40.2]} 25. Nxb7 {[%clk 0:03:26.5]}
25... Ncd5 {[%clk 0:03:36.9]} 26. bxa5 {[%clk 0:03:23.3]} 26... Rxa5 {[%clk
0:03:33.9]} 27. Nxa5 {[%clk 0:03:20]} 1-0

[Event "Live Chess"]
[Site "Chess.com"]
[Date "2023.05.20"]
[Round "-"]
[White "KeithArkell"]
[Black "Bob2pen"]
[Result "1-0"]
[WhiteElo "2610"]
[BlackElo "1832"]
[TimeControl "300"]
[EndTime "12:02:05 PDT"]
[Termination "KeithArkell won by resignation"]

1. d4 {[%clk 0:04:58.3]} 1... Nf6 {[%clk 0:04:58.6]} 2. Nf3 {[%clk 0:04:57.9]}
2... g6 {[%clk 0:04:57]} 3. c4 {[%clk 0:04:57.3]} 3... c5 {[%clk 0:04:55.6]} 4.
d5 {[%clk 0:04:56.1]} 4... e6 {[%clk 0:04:54.5]} 5. Nc3 {[%clk 0:04:55.6]} 5...
exd5 {[%clk 0:04:53.5]} 6. Nxd5 {[%clk 0:04:55.1]} 6... Nxd5 {[%clk 0:04:51.6]}
7. Qxd5 {[%clk 0:04:53.2]} 7... d6 {[%clk 0:04:43.7]} 8. Ng5 {[%clk 0:04:50]}
8... Qe7 {[%clk 0:04:39]} 9. Bf4 {[%clk 0:04:35.3]} 9... Be6 {[%clk 0:04:27.6]}
10. Nxe6 {[%clk 0:04:33.4]} 10... fxe6 {[%clk 0:04:25.9]} 11. Qd3 {[%clk
0:04:31.4]} 11... Nc6 {[%clk 0:04:21.8]} 12. Rd1 {[%clk 0:04:28.7]} 12... Rd8
{[%clk 0:04:13.8]} 13. e3 {[%clk 0:04:27.3]} 13... d5 {[%clk 0:03:49.8]} 14. h4
{[%clk 0:04:22.9]} 14... Bg7 {[%clk 0:03:47.5]} 15. Bg5 {[%clk 0:04:19.6]} 15...
Bf6 {[%clk 0:03:44.7]} 16. Bxf6 {[%clk 0:04:18.8]} 16... Qxf6 {[%clk 0:03:43.3]}
17. cxd5 {[%clk 0:04:17.5]} 17... Rxd5 {[%clk 0:03:40.2]} 18. Qb1 {[%clk
0:04:14]} 18... O-O {[%clk 0:03:35.1]} 19. f3 {[%clk 0:04:04.9]} 19... Rfd8
{[%clk 0:03:33.4]} 20. Rxd5 {[%clk 0:04:02.7]} 20... exd5 {[%clk 0:03:31.2]} 21.
Bb5 {[%clk 0:03:52.9]} 21... d4 {[%clk 0:03:27.9]} 22. Qe4 {[%clk 0:03:38.4]}
22... dxe3 {[%clk 0:03:23.1]} 23. Bxc6 {[%clk 0:03:32.6]} 23... bxc6 {[%clk
0:03:15.9]} 24. O-O {[%clk 0:03:26.9]} 24... Qd4 {[%clk 0:03:11.5]} 25. Re1
{[%clk 0:03:22.4]} 25... Qxe4 {[%clk 0:03:04]} 26. fxe4 {[%clk 0:03:21.1]} 26...
Rd2 {[%clk 0:03:02.9]} 27. b3 {[%clk 0:03:16]} 27... Rxa2 {[%clk 0:03:01.3]} 28.
Rxe3 {[%clk 0:03:15.2]} 28... Kf7 {[%clk 0:03:00.2]} 29. Rc3 {[%clk 0:03:14.1]}
29... Re2 {[%clk 0:02:50.1]} 30. Rc4 {[%clk 0:03:07.6]} 30... Ke6 {[%clk
0:02:47.9]} 31. Ra4 {[%clk 0:03:03.2]} 31... Ke5 {[%clk 0:02:40.7]} 32. Rxa7
{[%clk 0:02:59.6]} 32... Rxe4 {[%clk 0:02:38.4]} 33. Rxh7 {[%clk 0:02:58]} 33...
Kd4 {[%clk 0:02:35.6]} 34. Rh6 {[%clk 0:02:53.3]} 34... Rg4 {[%clk 0:02:33.8]}
35. Kf2 {[%clk 0:02:48.2]} 35... Ke5 {[%clk 0:02:11.6]} 36. Kf3 {[%clk
0:02:46.7]} 36... Kf5 {[%clk 0:02:10.3]} 37. h5 {[%clk 0:02:43.2]} 37... Rf4+
{[%clk 0:02:03.1]} 38. Ke3 {[%clk 0:02:37.8]} 38... Rb4 {[%clk 0:01:53.9]} 39.
Rxg6 {[%clk 0:02:35]} 39... Rxb3+ {[%clk 0:01:52.5]} 40. Kd2 {[%clk 0:02:34.1]}
40... Rb4 {[%clk 0:01:47.5]} 41. g4+ {[%clk 0:02:32.2]} 41... Ke4 {[%clk
0:01:42.3]} 42. h6 {[%clk 0:02:31]} 42... Rb2+ {[%clk 0:01:39.4]} 43. Kc3 {[%clk
0:02:30]} 43... Rh2 {[%clk 0:01:38.2]} 44. g5 {[%clk 0:02:29.5]} 44... Kf5
{[%clk 0:01:36.8]} 45. Rg7 {[%clk 0:02:28.6]} 45... Rh4 {[%clk 0:01:20.4]} 46.
h7 {[%clk 0:02:27.1]} 46... c4 {[%clk 0:01:16.8]} 47. g6 {[%clk 0:02:25.9]} 1-0